Workbook

Sheet Pasiūlymas
A2: PIRKIMO SĄLYGŲ PRIEDAS "PASIŪLYMO FORMA"
A4: MEDIKAMENTŲ PIRKIMAS
A6: Kam: | B6: VšĮ LSMU Kauno ligoninė
A8: Data: | B8: 2023-04-07
A9: Nr.: | B9: 07/04/23
A10: Vieta: | B10: Klonėnų vs.1, Šrivintų r. sav., 19156
A12: Tiekėjo pavadinimas / Ūkio subjektų grupės nariai: | C12: UAB Entafarma
A13: Tiekėjo kodas (-ai): | C13: 174443844
A14: Tiekėjo adresas (-ai): | C14: Klonėnų vs.1, Šrivintų r. sav., 19156
A15: Tiekėjo PVM mokėtojo kodas(-ai): | C15: LT744438415
A16: Tiekėjo / Ūkio subjektų grupės atsakingo partnerio sąskaitos numeris, banko pavadinimas ir banko kodas (-ai): | C16: AB "Swedbank" bankas, b.k. kodas 73000, A/s LT79 7300 0101 6149 4031
A17: Asmens atsakingo už pasiūlymą vardas, pavardė: | C17: Aurimas Kirkliauskas
A18: Asmens atsakingo už pasiūlymą telefono numeris, el. pašto adresas: | C18: 8-618 82684, aurimas.kirkliauskas@entafarma.lt
A19: Tiekėjo / Ūkio subjektų grupės, laimėjimo atveju, pasirašančio sutartį asmens vardas, pavardė, pareigos: | C19: Aurimas Kirkliauskas, konkursų skyriaus vadovas
A20: Tiekėjo / Ūkio subjektų grupės, laimėjimo atveju, už sutarties vykdymą atsakingo asmens vardas, pavardė, telefono numeris, elektroninio pašto adresas: | C20: Agnė Andrijauskienė, 8-612 49288, ligonines@entafarma.lt
A21: (1) Tiekėjo / Ūkio subjektų grupės narių, (2) ūkio subjektų, kurių pajėgumais remiamasi, ir (3) jei pašalinimo pagrindai taikomi visiems subtiekėjams - subtiekėjų, kolegialaus priežiūros organo (Stebėtojų tarybos) ir (ar) kolegialaus valdymo organo (Valdybos) narių sąrašas (jei sudaryta) ir (ar) asmuo, kuriam suteikti VPĮ 46 str. 2 d. 2 p. numatyti įgaliojimai | G21: =IF((SUMPRODUCT(--(C21=""))>0), "Privaloma užpildyti, kai taikomi pašalinimo pagrindai", "") -> Privaloma užpildyti, kai taikomi pašalinimo pagrindai
A23: Tiekėjo patvirtinimai:
A24: 1. Šiuo pasiūlymu pažymime, kad sutinkame su visomi pirkimo sąlygomis, nustatytomis:
A25: 1.1. viešojo pirkimo dokumentuose
A26: 1.2. kituose pirkimo dokumentuose (jų paaiškinimuose, papildymuose).
A27: 2. Patvirtiname, kad informacija ir duomenys, pateikti pasiūlyme, yra teisingi ir apima viską, ko reikia tinkamam sutarties įvykdymui
A28: 3. Patvirtiname, kad jei pasiūlyme nenurodyti kolegialaus priežiūros/valdymo organų nariai, šie organai juridiniuose asmenyse nėra sudaryti (taikoma, kai pirkimo dokumentuose nustatyti pašalinimo pagrindai).
A29: 4. Pasiūlymas galioja iki termino, nustatyto pirkimo dokumentuose.
A30: 5. Tais atvejais, kai pagal galiojančius teisės aktus tiekėjui nereikia mokėti PVM, jis nurodo priežastis, dėl kurių PVM nemoka:
A32: 1. DALIS | B32: AMPICILINAS / SULBAKTAMAS 2G/1G MILTELIAI INJEKCINIAM TIRPALUI
A34: Tiekėjo pasiūlymas:
A35: Nr. | B35: Pavadinimas | C35: Kiekis | D35: Mato vienetas | E35: Įkainis be PVM, Eur | F35: Suma be PVM, Eur | G35: Siūlomo produkto pavadinimas, dozė, kiekis pakuotėje, gamintojas. Būtina pažymėti, kuris vaistas yra vardinis
A36: 1. | B36: Ampicilinas / Sulbaktamas 2g/1g milteliai injekciniam tirpalui
A37: 1.1. | B37: Ampicilinas / Sulbaktamas 2g/1g milteliai injekciniam tirpalui | C37: 10000 | D37: fl. | E37: 0.627 | F37: =IF(ISBLANK(E37),"", PRODUCT(C37,E37)) -> 6270 | G37: Ampicillin & Sulbactam 3g for inj. N16, RemDcion [Vardinis]
E38: Suma be PVM | F38: =IF(F37="","",SUM(F37:F37)) -> 6270 | G38: =IF(F37="","Neužpildytos visos objektų kainos","") -> 
C39: Taikomas PVM dydis (%) | D39: 5 | E39: PVM suma | F39: =IF(OR(F38="",D39=""),"", PRODUCT(D39,F38)/100) -> 313.5 | G39: =IF(D39="", "Nurodykite taikomą PVM dydį", "") -> 
E40: Suma su PVM | F40: =IF(ISBLANK(F39), "", SUM(F38:F39)) -> 6583.5
A45: 4. DALIS | B45: AKTYVINTA ANGLIS MILTELIAIS PO 50 - 61,5G GRANULĖS
A47: Tiekėjo pasiūlymas:
A48: Nr. | B48: Pavadinimas | C48: Kiekis | D48: Mato vienetas | E48: Įkainis be PVM, Eur | F48: Suma be PVM, Eur | G48: Siūlomo produkto pavadinimas, dozė, kiekis pakuotėje, gamintojas. Būtina pažymėti, kuris vaistas yra vardinis
A49: 4. | B49: Aktyvinta anglis milteliais po 50 - 61,5g granulės
A50: 4.1. | B50: Aktyvinta anglis milteliais po 50 - 61,5g granulės | C50: 20 | D50: pak | E50: 12.33 | F50: =IF(ISBLANK(E50),"", PRODUCT(C50,E50)) -> 246.6 | G50: Aktyvinta anglis (ACTIVE COAL) milteliai 50g N1, Steris Healthcares [Vardinis]
E51: Suma be PVM | F51: =IF(F50="","",SUM(F50:F50)) -> 246.6 | G51: =IF(F50="","Neužpildytos visos objektų kainos","") -> 
C52: Taikomas PVM dydis (%) | D52: 5 | E52: PVM suma | F52: =IF(OR(F51="",D52=""),"", PRODUCT(D52,F51)/100) -> 12.33 | G52: =IF(D52="", "Nurodykite taikomą PVM dydį", "") -> 
E53: Suma su PVM | F53: =IF(ISBLANK(F52), "", SUM(F51:F52)) -> 258.93
A57: 7. DALIS | B57: FENILEFRINAS 10 MG/ML 1 ML TIRPALAS INJEKCIJOMS
A59: Tiekėjo pasiūlymas:
A60: Nr. | B60: Pavadinimas | C60: Kiekis | D60: Mato vienetas | E60: Įkainis be PVM, Eur | F60: Suma be PVM, Eur | G60: Siūlomo produkto pavadinimas, dozė, kiekis pakuotėje, gamintojas. Būtina pažymėti, kuris vaistas yra vardinis
A61: 7. | B61: Fenilefrinas 10 mg/ml 1 ml tirpalas injekcijoms
A62: 7.1. | B62: Fenilefrinas 10 mg/ml 1 ml tirpalas injekcijoms | C62: 60 | D62: amp. | E62: 7 | F62: =IF(ISBLANK(E62),"", PRODUCT(C62,E62)) -> 420 | G62: Frenin (Phenylephrine) 10mg/ml amp. 1ml N1, Samarth [Vardinis]
E63: Suma be PVM | F63: =IF(F62="","",SUM(F62:F62)) -> 420 | G63: =IF(F62="","Neužpildytos visos objektų kainos","") -> 
C64: Taikomas PVM dydis (%) | D64: 5 | E64: PVM suma | F64: =IF(OR(F63="",D64=""),"", PRODUCT(D64,F63)/100) -> 21 | G64: =IF(D64="", "Nurodykite taikomą PVM dydį", "") -> 
E65: Suma su PVM | F65: =IF(ISBLANK(F64), "", SUM(F63:F64)) -> 441
A69: 8. DALIS | B69: GLIUKOZĖS INJ. TIRP. 40% 10 ML
A71: Tiekėjo pasiūlymas:
A72: Nr. | B72: Pavadinimas | C72: Kiekis | D72: Mato vienetas | E72: Įkainis be PVM, Eur | F72: Suma be PVM, Eur | G72: Siūlomo produkto pavadinimas, dozė, kiekis pakuotėje, gamintojas. Būtina pažymėti, kuris vaistas yra vardinis
A73: 8. | B73: Gliukozės 40% 10 ml tirpalas injekcijoms
A74: 8.1. | B74: Gliukozės 40% 10 ml tirpalas injekcijoms | C74: 800 | D74: amp. | E74: 0.389 | F74: =IF(ISBLANK(E74),"", PRODUCT(C74,E74)) -> 311.2 | G74: Glukoze (Glucose) 4000mg/10ml injekcinis tirpalas 10ml N10, Profarma [Vardinis]
E75: Suma be PVM | F75: =IF(F74="","",SUM(F74:F74)) -> 311.2 | G75: =IF(F74="","Neužpildytos visos objektų kainos","") -> 
C76: Taikomas PVM dydis (%) | D76: 5 | E76: PVM suma | F76: =IF(OR(F75="",D76=""),"", PRODUCT(D76,F75)/100) -> 15.56 | G76: =IF(D76="", "Nurodykite taikomą PVM dydį", "") -> 
E77: Suma su PVM | F77: =IF(ISBLANK(F76), "", SUM(F75:F76)) -> 326.76
A81: 10. DALIS | B81: IMUNOGLOBULINAS NUO STABLIGĖS ARKLIŲ (ANTITETANINIS SERUMAS) 1500T INJEKCIJOMS, UŽTAISAS
A83: Tiekėjo pasiūlymas:
A84: Nr. | B84: Pavadinimas | C84: Kiekis | D84: Mato vienetas | E84: Įkainis be PVM, Eur | F84: Suma be PVM, Eur | G84: Siūlomo produkto pavadinimas, dozė, kiekis pakuotėje, gamintojas. Būtina pažymėti, kuris vaistas yra vardinis
A85: 10. | B85: Imunoglobulinas nuo stabligės arklių (antitetaninis serumas) 1500T injekcijoms, užtaisas
A86: 10.1. | B86: Imunoglobulinas nuo stabligės arklių (antitetaninis serumas) 1500T injekcijoms, užtaisas | C86: 10 | D86: užtaisas | E86: 89 | F86: =IF(ISBLANK(E86),"", PRODUCT(C86,E86)) -> 890 | G86: Tetanus Antitoxin (Premi-Tat) 1500 IU/ml 1ml N10, Premium Serums and Vaccines [Vardinis]
E87: Suma be PVM | F87: =IF(F86="","",SUM(F86:F86)) -> 890 | G87: =IF(F86="","Neužpildytos visos objektų kainos","") -> 
C88: Taikomas PVM dydis (%) | D88: 5 | E88: PVM suma | F88: =IF(OR(F87="",D88=""),"", PRODUCT(D88,F87)/100) -> 44.5 | G88: =IF(D88="", "Nurodykite taikomą PVM dydį", "") -> 
E89: Suma su PVM | F89: =IF(ISBLANK(F88), "", SUM(F87:F88)) -> 934.5
A93: 12. DALIS | B93: KOLISTINAS 1000000 TV INJEKCIJOMS
A95: Tiekėjo pasiūlymas:
A96: Nr. | B96: Pavadinimas | C96: Kiekis | D96: Mato vienetas | E96: Įkainis be PVM, Eur | F96: Suma be PVM, Eur | G96: Siūlomo produkto pavadinimas, dozė, kiekis pakuotėje, gamintojas. Būtina pažymėti, kuris vaistas yra vardinis
A97: 12. | B97: Kolistinas 1000000 TV injekcijoms
A98: 12.1. | B98: Kolistinas 1000000 TV injekcijoms | C98: 1000 | D98: fl. | E98: 1.74 | F98: =IF(ISBLANK(E98),"", PRODUCT(C98,E98)) -> 1740 | G98: Elistin 1,000,000 IU inj. N1, Samarth [Vardinis]
E99: Suma be PVM | F99: =IF(F98="","",SUM(F98:F98)) -> 1740 | G99: =IF(F98="","Neužpildytos visos objektų kainos","") -> 
C100: Taikomas PVM dydis (%) | D100: 5 | E100: PVM suma | F100: =IF(OR(F99="",D100=""),"", PRODUCT(D100,F99)/100) -> 87 | G100: =IF(D100="", "Nurodykite taikomą PVM dydį", "") -> 
E101: Suma su PVM | F101: =IF(ISBLANK(F100), "", SUM(F99:F100)) -> 1827
A105: 13. DALIS | B105: LABETALOLIS 100 MG
A107: Tiekėjo pasiūlymas:
A108: Nr. | B108: Pavadinimas | C108: Kiekis | D108: Mato vienetas | E108: Įkainis be PVM, Eur | F108: Suma be PVM, Eur | G108: Siūlomo produkto pavadinimas, dozė, kiekis pakuotėje, gamintojas. Būtina pažymėti, kuris vaistas yra vardinis
A109: 13. | B109: Labetalolis 100 mg
A110: 13.1. | B110: Labetalolis 100 mg | C110: 210 | D110: tab. | E110: 0.48 | F110: =IF(ISBLANK(E110),"", PRODUCT(C110,E110)) -> 100.8 | G110: Libetor 100mg tabletės N100, Johnlee Pharmaceuticals [Vardinis]
E111: Suma be PVM | F111: =IF(F110="","",SUM(F110:F110)) -> 100.8 | G111: =IF(F110="","Neužpildytos visos objektų kainos","") -> 
C112: Taikomas PVM dydis (%) | D112: 5 | E112: PVM suma | F112: =IF(OR(F111="",D112=""),"", PRODUCT(D112,F111)/100) -> 5.04 | G112: =IF(D112="", "Nurodykite taikomą PVM dydį", "") -> 
E113: Suma su PVM | F113: =IF(ISBLANK(F112), "", SUM(F111:F112)) -> 105.84
A117: 15. DALIS | B117: LIČIO KARBONATAS 450 MG
A119: Tiekėjo pasiūlymas:
A120: Nr. | B120: Pavadinimas | C120: Kiekis | D120: Mato vienetas | E120: Įkainis be PVM, Eur | F120: Suma be PVM, Eur | G120: Siūlomo produkto pavadinimas, dozė, kiekis pakuotėje, gamintojas. Būtina pažymėti, kuris vaistas yra vardinis
A121: 15. | B121: Ličio karbonatas 450 mg
A122: 15.1. | B122: Ličio karbonatas 450 mg | C122: 600 | D122: tab. | E122: 0.148 | F122: =IF(ISBLANK(E122),"", PRODUCT(C122,E122)) -> 88.8 | G122: Intalith CR-450mg tab. N100, INTAS Pharmaceuticals [Vardinis]
E123: Suma be PVM | F123: =IF(F122="","",SUM(F122:F122)) -> 88.8 | G123: =IF(F122="","Neužpildytos visos objektų kainos","") -> 
C124: Taikomas PVM dydis (%) | D124: 5 | E124: PVM suma | F124: =IF(OR(F123="",D124=""),"", PRODUCT(D124,F123)/100) -> 4.44 | G124: =IF(D124="", "Nurodykite taikomą PVM dydį", "") -> 
E125: Suma su PVM | F125: =IF(ISBLANK(F124), "", SUM(F123:F124)) -> 93.24
A128: 24. DALIS | B128: OKSACILINAS 1000MG MILTELIAI INJEKCINIAM TIRPALUI
A130: Tiekėjo pasiūlymas:
A131: Nr. | B131: Pavadinimas | C131: Kiekis | D131: Mato vienetas | E131: Įkainis be PVM, Eur | F131: Suma be PVM, Eur | G131: Siūlomo produkto pavadinimas, dozė, kiekis pakuotėje, gamintojas. Būtina pažymėti, kuris vaistas yra vardinis
A132: 24. | B132: Oksacilinas 1000mg milteliai injekciniam tirpalui
A133: 24.1. | B133: Oksacilinas 1000mg milteliai injekciniam tirpalui | C133: 2000 | D133: fl. | E133: 0.78 | F133: =IF(ISBLANK(E133),"", PRODUCT(C133,E133)) -> 1560 | G133: Oxacillin milteliai injekciniam tirpalui 1g N1, SWISS [Vardinis]
E134: Suma be PVM | F134: =IF(F133="","",SUM(F133:F133)) -> 1560 | G134: =IF(F133="","Neužpildytos visos objektų kainos","") -> 
C135: Taikomas PVM dydis (%) | D135: 5 | E135: PVM suma | F135: =IF(OR(F134="",D135=""),"", PRODUCT(D135,F134)/100) -> 78 | G135: =IF(D135="", "Nurodykite taikomą PVM dydį", "") -> 
E136: Suma su PVM | F136: =IF(ISBLANK(F135), "", SUM(F134:F135)) -> 1638
A139: 26. DALIS | B139: PIRAZINAMIDAS 500MG
A141: Tiekėjo pasiūlymas:
A142: Nr. | B142: Pavadinimas | C142: Kiekis | D142: Mato vienetas | E142: Įkainis be PVM, Eur | F142: Suma be PVM, Eur | G142: Siūlomo produkto pavadinimas, dozė, kiekis pakuotėje, gamintojas. Būtina pažymėti, kuris vaistas yra vardinis
A143: 26. | B143: Pirazinamidas 500mg
A144: 26.1. | B144: Pirazinamidas 500mg | C144: 800 | D144: tabl | E144: 0.24 | F144: =IF(ISBLANK(E144),"", PRODUCT(C144,E144)) -> 192 | G144: P-Zide 500mg tab. N200, Cadila [Vardinis]
E145: Suma be PVM | F145: =IF(F144="","",SUM(F144:F144)) -> 192 | G145: =IF(F144="","Neužpildytos visos objektų kainos","") -> 
C146: Taikomas PVM dydis (%) | D146: 5 | E146: PVM suma | F146: =IF(OR(F145="",D146=""),"", PRODUCT(D146,F145)/100) -> 9.6 | G146: =IF(D146="", "Nurodykite taikomą PVM dydį", "") -> 
E147: Suma su PVM | F147: =IF(ISBLANK(F146), "", SUM(F145:F146)) -> 201.6
A151: 27. DALIS | B151: PIRIDOKSINO HIDROCHLORIDAS 100 MG INJ TIRPALAS
A153: Tiekėjo pasiūlymas:
A154: Nr. | B154: Pavadinimas | C154: Kiekis | D154: Mato vienetas | E154: Įkainis be PVM, Eur | F154: Suma be PVM, Eur | G154: Siūlomo produkto pavadinimas, dozė, kiekis pakuotėje, gamintojas. Būtina pažymėti, kuris vaistas yra vardinis
A155: 27. | B155: Piridoksino hidrochloridas 100 mg injekcinis tirpalas
A156: 27.1. | B156: Piridoksino hidrochloridas 100 mg injekcinis tirpalas | C156: 1000 | D156: amp. | E156: 0.422 | F156: =IF(ISBLANK(E156),"", PRODUCT(C156,E156)) -> 422 | G156: Vitamine B6 100mg/2ml injekcinis tirpalas 2ml N10, Profarma [Vardinis]
E157: Suma be PVM | F157: =IF(F156="","",SUM(F156:F156)) -> 422 | G157: =IF(F156="","Neužpildytos visos objektų kainos","") -> 
C158: Taikomas PVM dydis (%) | D158: 5 | E158: PVM suma | F158: =IF(OR(F157="",D158=""),"", PRODUCT(D158,F157)/100) -> 21.1 | G158: =IF(D158="", "Nurodykite taikomą PVM dydį", "") -> 
E159: Suma su PVM | F159: =IF(ISBLANK(F158), "", SUM(F157:F158)) -> 443.1
A163: 28. DALIS | B163: PRALIDOKSIMO CHLORIDAS 1000 MG INJ TIRPALAS
A165: Tiekėjo pasiūlymas:
A166: Nr. | B166: Pavadinimas | C166: Kiekis | D166: Mato vienetas | E166: Įkainis be PVM, Eur | F166: Suma be PVM, Eur | G166: Siūlomo produkto pavadinimas, dozė, kiekis pakuotėje, gamintojas. Būtina pažymėti, kuris vaistas yra vardinis
A167: 28. | B167: Pralidoksimo chloridas 1000 mg injekcinis tirpalas
A168: 28.1. | B168: Pralidoksimo chloridas 1000 mg injekcinis tirpalas | C168: 100 | D168: fl. | E168: 27.66 | F168: =IF(ISBLANK(E168),"", PRODUCT(C168,E168)) -> 2766 | G168: Neopam 1000mg inj. N2, Troikaa Pharmaceuticals [Vardinis]
E169: Suma be PVM | F169: =IF(F168="","",SUM(F168:F168)) -> 2766 | G169: =IF(F168="","Neužpildytos visos objektų kainos","") -> 
C170: Taikomas PVM dydis (%) | D170: 5 | E170: PVM suma | F170: =IF(OR(F169="",D170=""),"", PRODUCT(D170,F169)/100) -> 138.3 | G170: =IF(D170="", "Nurodykite taikomą PVM dydį", "") -> 
E171: Suma su PVM | F171: =IF(ISBLANK(F170), "", SUM(F169:F170)) -> 2904.3
A176: 30. DALIS | B176: TIRPALAS NEIGIAMAI ALERGENŲ KONTROLEI 2,5 ML ±0,5ML
A178: Tiekėjo pasiūlymas:
A179: Nr. | B179: Pavadinimas | C179: Kiekis | D179: Mato vienetas | E179: Įkainis be PVM, Eur | F179: Suma be PVM, Eur | G179: Siūlomo produkto pavadinimas, dozė, kiekis pakuotėje, gamintojas. Būtina pažymėti, kuris vaistas yra vardinis
A180: 30. | B180: Tirpalas neigiamai alergenų kontrolei 2,5 ml ±0,5ml
A181: 30.1. | B181: Tirpalas neigiamai alergenų kontrolei 2,5 ml ±0,5ml | C181: 3 | D181: fl. | E181: 28 | F181: =IF(ISBLANK(E181),"", PRODUCT(C181,E181)) -> 84 | G181: Skin Prick Test bottle x 2,5ml + 0,5ml K100, Inmunotek [Vardinis]
E182: Suma be PVM | F182: =IF(F181="","",SUM(F181:F181)) -> 84 | G182: =IF(F181="","Neužpildytos visos objektų kainos","") -> 
C183: Taikomas PVM dydis (%) | D183: 5 | E183: PVM suma | F183: =IF(OR(F182="",D183=""),"", PRODUCT(D183,F182)/100) -> 4.2 | G183: =IF(D183="", "Nurodykite taikomą PVM dydį", "") -> 
E184: Suma su PVM | F184: =IF(ISBLANK(F183), "", SUM(F182:F183)) -> 88.2
A188: 31. DALIS | B188: TIRPALAS ODOS DŪRIMO TESTUI 3ML ± 0,5ML - MOTIEJUKAS
A190: Tiekėjo pasiūlymas:
A191: Nr. | B191: Pavadinimas | C191: Kiekis | D191: Mato vienetas | E191: Įkainis be PVM, Eur | F191: Suma be PVM, Eur | G191: Siūlomo produkto pavadinimas, dozė, kiekis pakuotėje, gamintojas. Būtina pažymėti, kuris vaistas yra vardinis
A192: 31. | B192: Tirpalas odos dūrimo testui 3ml ± 0,5ml - Motiejukas
A193: 31.1. | B193: Tirpalas odos dūrimo testui 3ml ± 0,5ml - Motiejukas | C193: 2 | D193: fl. | E193: 28 | F193: =IF(ISBLANK(E193),"", PRODUCT(C193,E193)) -> 56 | G193: Skin Prick Test bottle x 2,5ml + 0,5ml G110, Inmunotek [Vardinis]
E194: Suma be PVM | F194: =IF(F193="","",SUM(F193:F193)) -> 56 | G194: =IF(F193="","Neužpildytos visos objektų kainos","") -> 
C195: Taikomas PVM dydis (%) | D195: 5 | E195: PVM suma | F195: =IF(OR(F194="",D195=""),"", PRODUCT(D195,F194)/100) -> 2.8 | G195: =IF(D195="", "Nurodykite taikomą PVM dydį", "") -> 
E196: Suma su PVM | F196: =IF(ISBLANK(F195), "", SUM(F194:F195)) -> 58.8
A200: 32. DALIS | B200: TIRPALAS ODOS DŪRIMO TESTUI 3ML ± 0,5ML - PAPRASTASIS LAZDYNAS
A202: Tiekėjo pasiūlymas:
A203: Nr. | B203: Pavadinimas | C203: Kiekis | D203: Mato vienetas | E203: Įkainis be PVM, Eur | F203: Suma be PVM, Eur | G203: Siūlomo produkto pavadinimas, dozė, kiekis pakuotėje, gamintojas. Būtina pažymėti, kuris vaistas yra vardinis
A204: 32. | B204: Tirpalas odos dūrimo testui 3ml ± 0,5ml - paprastasis lazdynas
A205: 32.1. | B205: Tirpalas odos dūrimo testui 3ml ± 0,5ml - paprastasis lazdynas | C205: 2 | D205: fl. | E205: 28 | F205: =IF(ISBLANK(E205),"", PRODUCT(C205,E205)) -> 56 | G205: Skin Prick Test bottle x 2,5ml + 0,5ml T511, Inmunotek [Vardinis]
E206: Suma be PVM | F206: =IF(F205="","",SUM(F205:F205)) -> 56 | G206: =IF(F205="","Neužpildytos visos objektų kainos","") -> 
C207: Taikomas PVM dydis (%) | D207: 5 | E207: PVM suma | F207: =IF(OR(F206="",D207=""),"", PRODUCT(D207,F206)/100) -> 2.8 | G207: =IF(D207="", "Nurodykite taikomą PVM dydį", "") -> 
E208: Suma su PVM | F208: =IF(ISBLANK(F207), "", SUM(F206:F207)) -> 58.8
A212: 33. DALIS | B212: TIRPALAS ODOS DŪRIMO TESTUI 3ML ±0,5ML – HISTAMINO HCL
A214: Tiekėjo pasiūlymas:
A215: Nr. | B215: Pavadinimas | C215: Kiekis | D215: Mato vienetas | E215: Įkainis be PVM, Eur | F215: Suma be PVM, Eur | G215: Siūlomo produkto pavadinimas, dozė, kiekis pakuotėje, gamintojas. Būtina pažymėti, kuris vaistas yra vardinis
A216: 33. | B216: Tirpalas odos dūrimo testui 3ml ±0,5ml – Histamino HCL
A217: 33.1. | B217: Tirpalas odos dūrimo testui 3ml ±0,5ml – Histamino HCL | C217: 3 | D217: fl. | E217: 28 | F217: =IF(ISBLANK(E217),"", PRODUCT(C217,E217)) -> 84 | G217: Skin Prick Test bottle x 2,5ml + 0,5ml K200, Inmunotek [Vardinis]
E218: Suma be PVM | F218: =IF(F217="","",SUM(F217:F217)) -> 84 | G218: =IF(F217="","Neužpildytos visos objektų kainos","") -> 
C219: Taikomas PVM dydis (%) | D219: 5 | E219: PVM suma | F219: =IF(OR(F218="",D219=""),"", PRODUCT(D219,F218)/100) -> 4.2 | G219: =IF(D219="", "Nurodykite taikomą PVM dydį", "") -> 
E220: Suma su PVM | F220: =IF(ISBLANK(F219), "", SUM(F218:F219)) -> 88.2
A224: 34. DALIS | B224: TIRPALAS ODOS DŪRIMO TESTUI 3ML ±0,5ML - ALTERNARIA ALTERNATA
A226: Tiekėjo pasiūlymas:
A227: Nr. | B227: Pavadinimas | C227: Kiekis | D227: Mato vienetas | E227: Įkainis be PVM, Eur | F227: Suma be PVM, Eur | G227: Siūlomo produkto pavadinimas, dozė, kiekis pakuotėje, gamintojas. Būtina pažymėti, kuris vaistas yra vardinis
A228: 34. | B228: Tirpalas odos dūrimo testui 3ml ±0,5ml - Alternaria alternata
A229: 34.1. | B229: Tirpalas odos dūrimo testui 3ml ±0,5ml - Alternaria alternata | C229: 3 | D229: fl. | E229: 28 | F229: =IF(ISBLANK(E229),"", PRODUCT(C229,E229)) -> 84 | G229: Skin Prick Test bottle x 2,5ml + 0,5ml P901, Inmunotek [Vardinis]
E230: Suma be PVM | F230: =IF(F229="","",SUM(F229:F229)) -> 84 | G230: =IF(F229="","Neužpildytos visos objektų kainos","") -> 
C231: Taikomas PVM dydis (%) | D231: 5 | E231: PVM suma | F231: =IF(OR(F230="",D231=""),"", PRODUCT(D231,F230)/100) -> 4.2 | G231: =IF(D231="", "Nurodykite taikomą PVM dydį", "") -> 
E232: Suma su PVM | F232: =IF(ISBLANK(F231), "", SUM(F230:F231)) -> 88.2
A236: 35. DALIS | B236: TIRPALAS ODOS DŪRIMO TESTUI 3ML ±0,5ML - CANDIDA ALBICANS
A238: Tiekėjo pasiūlymas:
A239: Nr. | B239: Pavadinimas | C239: Kiekis | D239: Mato vienetas | E239: Įkainis be PVM, Eur | F239: Suma be PVM, Eur | G239: Siūlomo produkto pavadinimas, dozė, kiekis pakuotėje, gamintojas. Būtina pažymėti, kuris vaistas yra vardinis
A240: 35. | B240: Tirpalas odos dūrimo testui 3ml ±0,5ml - Candida Albicans
A241: 35.1. | B241: Tirpalas odos dūrimo testui 3ml ±0,5ml - Candida Albicans | C241: 2 | D241: fl. | E241: 28 | F241: =IF(ISBLANK(E241),"", PRODUCT(C241,E241)) -> 56 | G241: Skin Prick Test bottle x 2,5ml + 0,5ml P904, Inmunotek [Vardinis]
E242: Suma be PVM | F242: =IF(F241="","",SUM(F241:F241)) -> 56 | G242: =IF(F241="","Neužpildytos visos objektų kainos","") -> 
C243: Taikomas PVM dydis (%) | D243: 5 | E243: PVM suma | F243: =IF(OR(F242="",D243=""),"", PRODUCT(D243,F242)/100) -> 2.8 | G243: =IF(D243="", "Nurodykite taikomą PVM dydį", "") -> 
E244: Suma su PVM | F244: =IF(ISBLANK(F243), "", SUM(F242:F243)) -> 58.8
A248: 36. DALIS | B248: TIRPALAS ODOS DŪRIMO TESTUI 3ML ±0,5ML – DERM PTERONYSSINUS (NAMŲ ERKĖ)
A250: Tiekėjo pasiūlymas:
A251: Nr. | B251: Pavadinimas | C251: Kiekis | D251: Mato vienetas | E251: Įkainis be PVM, Eur | F251: Suma be PVM, Eur | G251: Siūlomo produkto pavadinimas, dozė, kiekis pakuotėje, gamintojas. Būtina pažymėti, kuris vaistas yra vardinis
A252: 36. | B252: Tirpalas odos dūrimo testui 3ml ±0,5ml – Derm Pteronyssinus (namų erkė)
A253: 36.1. | B253: Tirpalas odos dūrimo testui 3ml ±0,5ml – Derm Pteronyssinus (namų erkė) | C253: 2 | D253: fl. | E253: 28 | F253: =IF(ISBLANK(E253),"", PRODUCT(C253,E253)) -> 56 | G253: Skin Prick Test bottle x 2,5ml + 0,5ml M601, Inmunotek [Vardinis]
E254: Suma be PVM | F254: =IF(F253="","",SUM(F253:F253)) -> 56 | G254: =IF(F253="","Neužpildytos visos objektų kainos","") -> 
C255: Taikomas PVM dydis (%) | D255: 5 | E255: PVM suma | F255: =IF(OR(F254="",D255=""),"", PRODUCT(D255,F254)/100) -> 2.8 | G255: =IF(D255="", "Nurodykite taikomą PVM dydį", "") -> 
E256: Suma su PVM | F256: =IF(ISBLANK(F255), "", SUM(F254:F255)) -> 58.8
A260: 37. DALIS | B260: TIRPALAS ODOS DŪRIMO TESTUI 3ML ±0,5ML – DERM. FARINAE (NAMŲ ERKĖ)
A262: Tiekėjo pasiūlymas:
A263: Nr. | B263: Pavadinimas | C263: Kiekis | D263: Mato vienetas | E263: Įkainis be PVM, Eur | F263: Suma be PVM, Eur | G263: Siūlomo produkto pavadinimas, dozė, kiekis pakuotėje, gamintojas. Būtina pažymėti, kuris vaistas yra vardinis
A264: 37. | B264: Tirpalas odos dūrimo testui 3ml ±0,5ml – Derm. Farinae (namų erkė)
A265: 37.1. | B265: Tirpalas odos dūrimo testui 3ml ±0,5ml – Derm. Farinae (namų erkė) | C265: 2 | D265: fl. | E265: 28 | F265: =IF(ISBLANK(E265),"", PRODUCT(C265,E265)) -> 56 | G265: Skin Prick Test bottle x 2,5ml + 0,5ml M602, Inmunotek [Vardinis]
E266: Suma be PVM | F266: =IF(F265="","",SUM(F265:F265)) -> 56 | G266: =IF(F265="","Neužpildytos visos objektų kainos","") -> 
C267: Taikomas PVM dydis (%) | D267: 5 | E267: PVM suma | F267: =IF(OR(F266="",D267=""),"", PRODUCT(D267,F266)/100) -> 2.8 | G267: =IF(D267="", "Nurodykite taikomą PVM dydį", "") -> 
E268: Suma su PVM | F268: =IF(ISBLANK(F267), "", SUM(F266:F267)) -> 58.8
A272: 38. DALIS | B272: TIRPALAS ODOS DŪRIMO TESTUI 3ML ±0,5ML - KATĖS PLAUKAI
A274: Tiekėjo pasiūlymas:
A275: Nr. | B275: Pavadinimas | C275: Kiekis | D275: Mato vienetas | E275: Įkainis be PVM, Eur | F275: Suma be PVM, Eur | G275: Siūlomo produkto pavadinimas, dozė, kiekis pakuotėje, gamintojas. Būtina pažymėti, kuris vaistas yra vardinis
A276: 38. | B276: Tirpalas odos dūrimo testui 3ml ±0,5ml - Katės plaukai
A277: 38.1. | B277: Tirpalas odos dūrimo testui 3ml ±0,5ml - Katės plaukai | C277: 3 | D277: fl. | E277: 28 | F277: =IF(ISBLANK(E277),"", PRODUCT(C277,E277)) -> 84 | G277: Skin Prick Test bottle x 2,5ml + 0,5ml E801, Inmunotek [Vardinis]
E278: Suma be PVM | F278: =IF(F277="","",SUM(F277:F277)) -> 84 | G278: =IF(F277="","Neužpildytos visos objektų kainos","") -> 
C279: Taikomas PVM dydis (%) | D279: 5 | E279: PVM suma | F279: =IF(OR(F278="",D279=""),"", PRODUCT(D279,F278)/100) -> 4.2 | G279: =IF(D279="", "Nurodykite taikomą PVM dydį", "") -> 
E280: Suma su PVM | F280: =IF(ISBLANK(F279), "", SUM(F278:F279)) -> 88.2
A284: 39. DALIS | B284: TIRPALAS ODOS DŪRIMO TESTUI 3ML ±0,5ML – ŠUNS PLAUKAI
A286: Tiekėjo pasiūlymas:
A287: Nr. | B287: Pavadinimas | C287: Kiekis | D287: Mato vienetas | E287: Įkainis be PVM, Eur | F287: Suma be PVM, Eur | G287: Siūlomo produkto pavadinimas, dozė, kiekis pakuotėje, gamintojas. Būtina pažymėti, kuris vaistas yra vardinis
A288: 39. | B288: Tirpalas odos dūrimo testui 3ml ±0,5ml – Šuns plaukai
A289: 39.1. | B289: Tirpalas odos dūrimo testui 3ml ±0,5ml – Šuns plaukai | C289: 3 | D289: fl. | E289: 28 | F289: =IF(ISBLANK(E289),"", PRODUCT(C289,E289)) -> 84 | G289: Skin Prick Test bottle x 2,5ml + 0,5ml E802, Inmunotek [Vardinis]
E290: Suma be PVM | F290: =IF(F289="","",SUM(F289:F289)) -> 84 | G290: =IF(F289="","Neužpildytos visos objektų kainos","") -> 
C291: Taikomas PVM dydis (%) | D291: 5 | E291: PVM suma | F291: =IF(OR(F290="",D291=""),"", PRODUCT(D291,F290)/100) -> 4.2 | G291: =IF(D291="", "Nurodykite taikomą PVM dydį", "") -> 
E292: Suma su PVM | F292: =IF(ISBLANK(F291), "", SUM(F290:F291)) -> 88.2

Sheet Subtiekėjai ir priedai
A2: Ūkio subjektai (įskaitant kvazisubtiekėjus - fiziniai asmenys, kuriuos ketinama įdarbinti pirkimo laimėjimo atveju), kurių pajėgumais tiekėjas remiasi, kad atitiktų keliamus kvalifikacijos reikalavimus:
A5: Pavadinimas* | C5: Kodas, adresas | F5: Perduodami įsipareigojimai | I5: Perduodamų įsipareigojimų dalis nuo visos pirkimo sutarties (Eur arba %) | K5: Kval. Reikalavimo Nr.
A9: Subtiekėjams / subteikėjams / subrangovams numatomos perduoti veiklos (privaloma nurodyti) ir šių ūkio subjektų pavadinimai (jei žinomi):
A11: Pavadinimas | C11: Kodas, adresas | F11: Perduodama veikla* | I11: Perduodamos veiklos dalis nuo visos pirkimo sutarties (Eur arba %)
A18: Kartu su pasiūlymu pateikiami šie dokumentai:
A20: Nr. | B20: Dokumento pavadinimas | H20: Dokumentas yra konfidencialus? Taip/Ne
A21: 1 | B21: Jungtinės veiklos kopija (jei taikoma)
A22: 2 | B22: Europos bendrasis viešųjų pirkimų dokumentas | H22: Ne
A23: 3 | B23: Subtiekimo sutartis, ketinimų protokolas, preliminarios sutartys ar kiti dokumentai, patvirtinantys, kad laimėjus pirkimą tiekėjui bus prieinami kitų ūkio subjektų ištekliai (jei pasitelkiami kvalifikacijos atitikimui) | H23: Ne
A29: Pasiūlyme nurodyta Prekės kaina, išskyrus jos sudedamąsias dalis, subtiekėjai, taip pat kita informacija, kuri teisės aktų nustatyta tvarka turi būti skelbiama arba kitokiu būdu viešai prieinama visuomenei, nėra laikoma konfidencialia informacija. Konfidencialią informaciją sudaro, visų pirma, komercinė (gamybinė) paslaptis ir konfidencialieji pasiūlymų aspektai. Informacija, kurią viešai skelbti įpareigoja Lietuvos Respublikos įstatymai, negali būti tiekėjo nurodoma kaip konfidenciali, todėl, tiekėjui nurodžius tokią informaciją kaip konfidencialią, perkančioji organizacija turi teisę ją skelbti. Jei tiekėjas nenurodo konfidencialios informacijos, laikoma, kad konfidencialios informacijos tiekėjo pasiūlyme nėra. Vadovaujantis Informacijos viešinimo Centrinėje viešųjų pirkimų informacinėje sistemoje tvarkos aprašu, patvirtintu Viešųjų pirkimų tarnybos direktoriaus 2017 m. birželio 19 d. įsakymu Nr. 1S-91 „Dėl Informacijos viešinimo Centrinėje viešųjų pirkimų informacinėje sistemoje tvarkos aprašo patvirtinimo“, perkančioji organizacija laimėjusio dalyvio pasiūlymą, išskyrus informaciją, kurią tiekėjas nurodė kaip konfidencialią, paskelbs CVP IS.
A32: Tiekėjo arba jo įgalioto asmens pareigų pavadinimas: | E32: Konkursų skyriaus vadovas
A34: Pasirašančio asmens vardas ir pavardė: | E34: Aurimas Kirkliauskas
A81: 8124 2023-03-17 14:33:04
